bitfinex/quotes_ETHUSD_20240902
["timestamp","ask_amount","ask_price","bid_price","bid_amount"]
[1725257032412,0.92040129,2464.8,2464.4,2.84035]
[1725257033110,0.92040129,2464.8,2464.4,5.68073]
[1725257033283,0.07959171,2464.8,2464.4,2.84035]
[1725257034710,0.07959171,2464.8,2464.3,2.84056]
[1725257035016,0.07959171,2464.8,2464.4,2.84035]
[1725257035878,0.07959171,2464.8,2464.4,5.68072]
[1725257036222,0.07959171,2464.8,2464.5,2.84032]
[1725257036591,0.07959171,2465.0,2464.7,2.8401]
[1725257036920,3.07959171,2465.2,2464.7,2.8401]
[1725257037119,4.20584488,2465.2,2464.7,2.8401]
[1725257037273,4.20584488,2465.2,2464.7,2.84003]
[1725257037478,0.07959171,2465.2,2464.7,5.25843]
[1725257037678,0.07959171,2465.3,2464.9,2.83984]
[1725257038504,0.07959171,2465.3,2464.9,5.67964]
[1725257038759,0.07959171,2465.4,2465.1,2.8396]
[1725257039481,0.07959171,2465.6,2465.1,2.8396]
[1725257039871,0.61954439,2465.6,2465.1,2.8396]
[1725257040042,3.61954439,2465.6,2465.1,2.8396]
[1725257040532,0.42513573,2465.5,2465.1,2.8396]
[1725257040729,0.07959171,2465.4,2465.1,2.8396]
[1725257041278,0.42513573,2465.5,2465.2,2.83951]
[1725257041684,0.42513573,2465.5,2465.3,2.83934]
[1725257042790,0.42513573,2465.5,2464.3,11.728]
[1725257042791,2.83995,2464.9,2464.2,5.20866]
[1725257042994,2.4256,2465.3,2464.2,2.368]
[1725257042995,5.62918671,2464.8,2464.2,2.368]
[1725257043155,2.91969171,2464.7,2464.2,2.368]
[1725257043356,2.91969171,2464.7,2464.0,2.84084]
[1725257043357,2.84029,2464.6,2464.0,2.84084]
[1725257043569,0.07959171,2464.5,2464.0,3.65661899]
[1725257044093,2.91992171,2464.5,2463.9,2.368]
[1725257044306,2.84045,2464.4,2463.9,2.368]
[1725257044445,2.84045,2464.4,2463.9,5.20902]
[1725257044645,0.07959171,2464.5,2463.9,5.20902]
[1725257044845,0.07959171,2464.5,2463.9,6.014041]
[1725257045091,0.07959171,2464.5,2463.9,6.013971]
[1725257045293,0.07959171,2464.5,2464.0,2.84083]
[1725257045590,0.07959171,2464.7,2464.1,2.84078]
[1725257045800,0.07959171,2464.8,2464.3,2.84048]
[1725257045957,3.07959171,2464.8,2464.3,5.20848]
[1725257046851,0.07959171,2464.8,2464.3,6.013402]
[1725257047047,0.07959171,2465.0,2464.5,2.8403]
[1725257047485,0.07959171,2465.0,2464.5,2.84024]
[1725257047784,2.84003,2464.8,2464.3,5.20849]
[1725257047961,0.07959171,2464.7,2464.1,5.3388]
[1725257048165,0.07959171,2464.7,2464.1,5.87268]
[1725257048346,2.4381,2464.6,2463.9,2.84098]
[1725257048543,0.07959171,2464.5,2463.9,2.84094]
[1725257048952,0.07959171,2464.5,2464.1,2.84071]
[1725257049289,0.07959171,2464.5,2464.1,3.408869]
[1725257049486,0.07959171,2464.7,2464.1,3.408869]
[1725257049662,2.91975171,2464.7,2464.1,2.84071]
[1725257051300,0.07959171,2464.7,2464.2,2.84064]
[1725257051591,0.07959171,2464.7,2464.4,2.84043]
[1725257051751,0.07959171,2464.9,2464.4,2.84043]
[1725257051954,0.9225418,2464.9,2464.4,2.84043]
[1725257053081,0.07959171,2464.9,2464.4,5.6808]
[1725257053391,0.07959171,2464.9,2464.4,5.68074]
[1725257054396,0.07959171,2464.9,2464.6,2.84018]
[1725257054691,0.07959171,2465.0,2464.6,3.124198]
[1725257055003,0.07959171,2465.0,2464.6,2.84018]
[1725257055886,0.42518757,2464.9,2464.6,2.84018]
[1725257056251,2.72428757,2464.9,2464.4,2.84036]
[1725257057196,2.72428757,2464.9,2464.4,5.68073]
[1725257057498,0.42518757,2464.9,2464.4,3.408433]
[1725257057702,0.42518757,2464.9,2464.5,2.84026]
[1725257057883,0.42518757,2464.9,2464.5,5.12266]
[1725257058866,0.42518757,2464.9,2464.5,2.2824]
[1725257059812,0.42518757,2464.9,2464.5,5.12272]
[1725257060106,0.42518757,2464.9,2464.4,2.84036]
[1725257062204,0.42518757,2464.9,2464.1,7.44]
[1725257062205,2.4856,2464.7,2464.1,7.44]
[1725257062411,2.84066,2464.3,2464.1,7.44]
[1725257062705,2.84039,2464.5,2464.1,7.44]
[1725257063423,0.07959171,2464.4,2464.1,7.44]
[1725257065516,0.07959171,2464.5,2464.1,12.71675]
[1725257066280,0.07959171,2464.7,2464.2,2.84066]
[1725257066816,2.91970171,2464.7,2464.1,9.876]
[1725257067018,5.75990171,2464.7,2464.1,9.876]
[1725257067235,2.91970171,2464.7,2464.1,9.876]
[1725257067519,2.91970171,2464.7,2464.1,12.71679]
[1725257067733,5.75991171,2464.7,2464.1,9.876]
[1725257067888,5.75989171,2464.7,2464.1,12.71677]
[1725257068303,2.84022,2464.6,2464.1,9.876]
[1725257068527,0.07959171,2464.6,2464.1,9.876]
[1725257068818,2.91970171,2464.7,2464.1,12.71678]
[1725257070322,2.91970171,2464.7,2464.1,9.876]
[1725257070496,2.84022,2464.6,2464.1,7.44]
[1725257071194,0.42523028,2464.5,2464.1,7.44]
[1725257072546,0.07959171,2464.4,2463.2,2.4033]
[1725257072822,2.2999,2463.9,2463.2,2.4033]
[1725257073027,2.84156,2463.5,2463.2,2.4033]
[1725257075283,0.07959171,2463.6,2463.2,2.4033]
[1725257076799,2.92102171,2463.6,2463.2,2.4033]
[1725257078227,0.07959171,2463.6,2463.2,2.4033]
[1725257078431,0.07959171,2463.6,2463.2,3.212022]
[1725257079038,0.07959171,2463.6,2463.2,6.053832]
[1725257081366,0.07959171,2463.6,2463.2,2.4033]
[1725257082479,2.84201,2463.1,2462.6,2.4681]
[1725257082624,0.284201,2463.0,2462.6,2.4681]
[1725257082827,2.84201,2463.1,2462.6,2.4681]
[1725257086066,5.68403,2463.1,2462.6,2.4681]
[1725257086229,0.07959171,2463.0,2462.6,2.4681]
[1725257086567,0.50506315,2463.0,2462.6,2.4681]
[1725257087471,0.42547144,2463.0,2462.6,5.3106]
[1725257087671,0.42547144,2463.0,2462.6,6.125916]
[1725257088725,0.42547144,2463.0,2462.7,2.84239]
[1725257089670,0.42547144,2463.0,2462.8,2.84227]
[1725257091745,0.42547144,2463.0,2462.5,2.84253]
[1725257091946,0.42547144,2463.0,2462.6,5.10245]
[1725257094846,0.42547144,2463.0,2462.7,2.84239]
[1725257095059,0.42547144,2463.0,2462.7,2.84234]
[1725257095248,0.42547144,2463.0,2462.7,2.84233]
[1725257096504,0.42547144,2463.0,2462.7,5.68466]
[1725257096644,0.42547144,2463.0,2462.7,2.84233]
[1725257100063,0.42547144,2463.0,2462.8,2.84226]
[1725257100303,0.42547144,2463.0,2462.9,2.84217]
[1725257102107,0.42547144,2463.0,2462.9,8.09344]
[1725257105407,0.42547144,2463.0,2462.9,13.88455992]
[1725257105711,0.07959171,2464.0,2463.6,2.2811]
[1725257106195,0.42536207,2463.9,2463.6,5.12244]
[1725257106427,0.42536207,2463.9,2463.7,2.84125]
[1725257108796,0.42536207,2463.9,2463.7,2.84119]
[1725257109112,0.42536207,2463.9,2463.8,2.84113]
[1725257109637,0.42536207,2463.9,2463.8,5.76343006]
[1725257109996,0.42536207,2463.9,2463.8,5.68226]
[1725257110389,0.42536207,2463.9,2463.8,2.84113]
[1725257111024,0.42536207,2463.9,2463.6,5.1224]
[1725257111188,0.42536207,2463.9,2463.4,2.84153]
[1725257111395,0.75198628,2463.9,2463.4,2.84153]
[1725257111740,0.07959171,2463.8,2463.4,2.84153]
[1725257113963,0.50495378,2463.9,2463.4,2.84153]
[1725257114163,0.42536207,2463.9,2463.6,2.84134]
[1725257114349,0.42536207,2463.9,2463.7,5.15828]
[1725257115398,0.42536207,2463.9,2463.8,2.84113]
[1725257116643,0.42536207,2463.9,2463.7,2.3171]
[1725257116849,0.42536207,2463.9,2463.6,2.84134]
[1725257118756,0.42536207,2463.9,2463.6,2.8413]
[1725257120107,0.42536207,2463.9,2463.6,5.6826]
[1725257120264,0.42536207,2463.9,2463.6,6.514431]
[1725257121011,0.42536207,2463.9,2463.6,3.673131]
[1725257121363,0.42536207,2463.9,2463.6,2.8413]
[1725257122620,0.42536207,2463.9,2460.3,2.91592287]
[1725257122621,2.84213,2463.0,2462.4,2.4113]
[1725257122765,0.36380471,2462.9,2462.4,2.4113]
[1725257122967,0.07959171,2462.9,2462.4,2.4113]
[1725257123210,2.92179171,2462.9,2462.1,2.4113]
[1725257123371,2.84268,2462.5,2462.1,2.4113]
[1725257123715,0.07959171,2462.4,2462.1,2.4113]
[1725257123915,0.07959171,2462.4,2461.8,5.12756]
[1725257124079,0.07959171,2462.4,2461.8,5.924678]
[1725257124481,0.07959171,2462.5,2461.8,5.924678]
[1725257125417,2.92223171,2462.5,2461.8,8.768048]
[1725257125619,0.07959171,2462.5,2461.9,2.84331]
[1725257126716,3.46010188,2462.5,2461.8,5.924678]
[1725257126919,3.46010188,2462.5,2461.8,7.97093]
[1725257127218,3.46010188,2462.5,2461.8,5.12756]
[1725257127964,2.84277,2462.4,2461.8,5.12756]
[1725257128167,0.07959171,2462.3,2461.8,5.12756]
[1725257128602,0.07959171,2462.3,2461.8,7.97093]
[1725257128918,0.07959171,2462.3,2461.9,3.640423]
[1725257129126,5.68523,2462.6,2461.9,0.797093]
[1725257129127,2.92225171,2462.5,2461.9,0.797093]
[1725257129441,2.3678,2461.9,2461.3,2.84399]
[1725257129724,0.07959171,2461.8,2461.3,2.84399]
[1725257129926,2.92307171,2461.8,2461.1,5.68836]
[1725257130084,2.92307171,2461.8,2461.2,0.511999]
[1725257130534,0.07959171,2461.8,2461.3,2.844]
[1725257130890,0.07959171,2461.8,2461.3,2.84395]
[1725257131086,0.07959171,2461.8,2461.3,3.4639659]
[1725257131840,0.10420416,2461.7,2461.3,3.4639659]
[1725257132339,0.1035361,2461.6,2461.3,3.4639659]
[1725257132645,0.07959171,2461.8,2461.3,6.3078959]
[1725257132809,0.10350248,2461.5,2461.3,6.3078959]
[1725257133149,0.10346885,2461.4,2461.3,6.3078959]
[1725257133313,0.07959171,2461.8,2461.3,5.68788]
[1725257133519,0.10346885,2461.4,2461.3,5.68788]
[1725257133734,0.07959171,2461.8,2461.4,2.8439]
[1725257133903,0.07959171,2461.8,2461.4,5.2589]
[1725257134247,0.07959171,2461.9,2461.4,5.2589]
[1725257134914,0.07959171,2462.1,2461.9,2.84328]
[1725257135116,0.07959171,2462.4,2461.9,2.84328]
[1725257136103,0.07959171,2462.4,2461.9,3.29849046]
[1725257136315,0.07959171,2462.4,2461.9,5.77539046]
[1725257136536,0.07959171,2462.4,2462.1,2.84309]
[1725257137938,0.07959171,2462.4,2461.2,2.84409]
[1725257137939,2.453,2462.2,2460.9,2.3283]
[1725257138169,2.84357,2461.7,2460.9,8.24995]
[1725257138335,5.29681,2461.5,2460.9,2.84439]
[1725257138538,0.61027002,2461.4,2460.9,2.84439]
[1725257138739,4.145286,2461.4,2460.9,2.84439]
[1725257139275,1.301376,2461.4,2460.9,2.84439]
[1725257139568,4.145296,2461.4,2460.7,2.84463]
[1725257139931,0.9442106,2461.3,2460.7,5.68927]
[1725257140135,0.07959171,2461.2,2460.7,5.68927]
[1725257140334,0.17961121,2461.2,2460.7,5.68927]
[1725257140952,0.17961121,2461.2,2460.7,2.84463]
[1725257141284,0.1000195,2461.2,2460.7,2.84463]
[1725257141432,0.1000195,2461.2,2460.6,2.3283]
[1725257141644,0.1000195,2461.2,2460.9,2.8444]
[1725257142088,0.07959171,2461.3,2460.9,2.8444]
[1725257142249,0.0993698,2461.1,2461.0,2.84435]
[1725257142448,0.07959171,2461.4,2461.0,2.84435]
[1725257142654,0.0993698,2461.1,2461.0,2.84435]
[1725257142869,0.07959171,2461.4,2460.9,5.68881]
[1725257143052,0.0993698,2461.1,2460.9,6.280974]
[1725257143254,0.50525486,2461.6,2461.2,2.84407]
[1725257143451,3.50525486,2461.6,2461.2,2.84407]
[1725257143795,4.10279035,2461.6,2461.1,2.84416]
[1725257148560,3.50525486,2461.6,2461.1,2.84416]
[1725257148758,3.50525486,2461.6,2460.7,0.23283]
[1725257148759,2.84393,2461.4,2460.7,2.84464]
[1725257149008,2.84393,2461.4,2460.6,2.84483]
[1725257149009,2.92368171,2461.3,2460.6,2.84483]
[1725257149161,5.76779171,2461.3,2460.6,2.84483]
[1725257149872,2.92368171,2461.3,2460.6,5.68958]
[1725257150404,2.92368171,2461.3,2460.7,2.84468]
[1725257150777,0.07959171,2461.3,2460.8,2.84455]
[1725257151106,0.42566315,2461.6,2461.1,2.84421]
[1725257151311,0.42566315,2461.6,2461.3,2.84392]
[1725257151647,0.42566315,2461.6,2461.4,2.8439]
[1725257152414,0.42566315,2461.6,2461.5,2.84379]
[1725257152645,0.42566315,2461.6,2461.4,2.8439]
[1725257153249,0.42566315,2461.6,2461.4,2.84384]
[1725257153562,0.42566315,2461.6,2461.5,0.284384]
[1725257153859,0.42566315,2461.6,2461.5,3.128174]
[1725257154149,0.42566315,2461.6,2461.5,5.971964]
[1725257155044,0.52516287,2461.6,2461.5,5.971964]
[1725257155766,0.52516287,2461.6,2461.4,2.3636]
[1725257155970,0.52516287,2461.6,2461.3,2.84402]
[1725257162670,0.52516287,2461.6,2460.9,2.94894992]
[1725257162671,0.07959171,2461.5,2461.0,2.84426]
[1725257162894,3.55259817,2461.5,2461.0,2.84426]
[1725257163095,5.20453478,2461.4,2460.8,9.6399]
[1725257163249,0.07959171,2461.3,2460.8,2.84458]
[1725257163786,0.52168064,2461.2,2460.8,2.84458]
[1725257164099,0.52168064,2461.2,2460.9,2.84448]
[1725257164293,0.52168064,2461.2,2460.9,5.29278]
[1725257164477,0.52168064,2461.2,2461.1,2.84425]
[1725257166368,0.42561626,2461.2,2461.1,2.84425]
[1725257166875,0.52143092,2461.2,2461.1,2.84425]
[1725257168269,0.52143092,2461.2,2461.1,6.14658647]
[1725257168453,0.52143092,2461.2,2461.1,8.44088647]
[1725257168796,0.42561626,2461.2,2461.1,8.44088647]
[1725257170288,0.42561626,2461.2,2461.1,11.28513647]
[1725257176523,0.42561626,2461.2,2461.1,8.44088647]
[1725257176732,0.42561626,2461.2,2461.1,5.6885]
[1725257177028,0.52153556,2461.2,2461.1,5.6885]
[1725257177925,0.42561626,2461.2,2461.1,2.84425]
[1725257178091,0.52164911,2461.2,2461.1,2.84425]
[1725257178430,0.52164911,2461.2,2461.0,2.84428]
[1725257178717,0.52164911,2461.2,2460.9,2.84441]
[1725257178925,0.60124082,2461.2,2460.9,2.84441]
[1725257179120,0.29151491,2461.1,2460.9,2.84441]
[1725257179510,0.09331977,2461.0,2460.9,2.84441]
[1725257180024,0.50520797,2461.2,2460.7,5.68928]
[1725257180225,0.2898708,2461.1,2460.7,5.68928]
[1725257180420,0.50520797,2461.2,2460.7,2.84462]
[1725257180622,0.42561626,2461.2,2461.1,2.84425]
[1725257180842,0.42561626,2461.2,2460.9,5.68885]
[1725257181835,0.42561626,2461.2,2460.9,2.84439]
[1725257182011,0.42561626,2461.2,2460.9,5.6888]
[1725257182325,0.42561626,2461.2,2460.9,2.84439]
[1725257182498,0.42561626,2461.2,2460.9,5.6888]
[1725257182696,0.42561626,2461.2,2460.9,2.84439]
[1725257184040,0.42561626,2461.2,2461.0,2.84436]
[1725257184246,0.42561626,2461.2,2460.9,5.6888]
[1725257184616,0.42561626,2461.2,2460.9,2.84439]
[1725257184801,0.42561626,2461.2,2460.9,5.68881]
[1725257185339,0.09273388,2461.1,2461.0,2.84437]
[1725257185808,0.09273388,2461.1,2460.9,5.6888]
[1725257186141,0.09273388,2461.1,2460.9,5.68879]
[1725257186327,0.09273388,2461.1,2460.9,5.68881]
[1725257186939,0.09273388,2461.1,2460.9,5.6888]
[1725257187144,0.09273388,2461.1,2460.7,2.84462]
[1725257187145,0.17232559,2461.1,2460.7,2.84462]
[1725257187344,2.4563,2461.0,2460.4,5.69006]
[1725257187648,2.4563,2461.0,2460.4,2.84499]
[1725257187649,0.62688627,2460.9,2460.4,2.84499]
[1725257187956,5.17738,2460.8,2460.2,2.84524]
[1725257188096,0.07959171,2460.7,2460.2,2.84524]
[1725257188442,0.09249104,2460.6,2460.3,2.84517]
[1725257188743,0.09249104,2460.6,2460.2,2.84522]
[1725257188927,0.09249104,2460.6,2460.2,5.69044]
[1725257189111,0.09249104,2460.6,2460.3,2.84511]
[1725257190098,0.09249104,2460.6,2460.4,2.84502]
[1725257190298,0.09249104,2460.6,2460.5,2.84495]
[1725257190527,0.50515682,2460.9,2460.6,2.84483]
[1725257190742,0.09190299,2460.8,2460.6,2.84483]
[1725257191715,0.09190299,2460.8,2460.7,2.84471]
[1725257192536,0.09190299,2460.8,2460.6,5.68959]
[1725257192852,0.09190299,2460.8,2460.6,5.68953]
[1725257193056,0.09190299,2460.8,2460.7,2.84471]
[1725257193548,0.09190299,2460.8,2460.7,6.258367]
[1725257193850,0.42556511,2460.9,2460.8,5.6892]
[1725257194205,0.51767975,2460.9,2460.8,5.6892]
[1725257194861,0.51767975,2460.9,2460.8,2.8446]
[1725257197150,0.51767975,2460.9,2460.7,2.84471]
[1725257197368,0.42556511,2460.9,2460.7,2.84471]
[1725257197551,0.09220568,2460.8,2460.7,2.84471]
[1725257198470,0.09220568,2460.8,2460.7,5.973891]
[1725257198629,0.09220568,2460.8,2460.7,8.347091]
[1725257200972,0.42556511,2460.9,2460.8,5.6892]
[1725257202876,0.42556511,2460.9,2460.8,8.5338]
[1725257203228,0.42556511,2460.9,2460.8,10.9169]
[1725257203955,0.42556511,2460.9,2460.8,11.4669]
[1725257204199,0.42556511,2460.9,2460.8,16.7615]
[1725257204353,0.42556511,2460.9,2460.8,17.3115]
[1725257206473,0.42556511,2460.9,2460.8,14.4669]
[1725257209553,0.42556511,2460.9,2460.8,11.0723]
[1725257210807,0.42556511,2460.9,2460.8,5.6892]
[1725257211103,0.42556511,2460.9,2460.8,2.8446]
[1725257211104,0.51879591,2460.9,2460.8,2.8446]
[1725257211400,0.51879591,2460.9,2460.6,2.84476]
[1725257211607,0.7182347,2460.9,2460.6,2.84476]
[1725257211770,0.09275284,2460.8,2460.6,2.84476]
[1725257211973,0.7182347,2460.9,2460.6,2.84476]
[1725257212185,0.09271918,2460.7,2460.4,12.97996]
[1725257212366,2.3412,2460.7,2460.4,2.84496]
[1725257212577,0.09263664,2460.6,2460.5,2.84493]
[1725257212759,0.51824972,2460.6,2460.5,2.84493]
[1725257213457,0.51824972,2460.6,2460.4,5.68993]
[1725257213699,0.51824972,2460.6,2460.4,2.84496]
[1725257218424,0.51824972,2460.6,2460.5,2.84495]
[1725257218624,0.51824972,2460.6,2460.4,2.84496]
[1725257219450,0.51824972,2460.6,2460.5,2.84495]
[1725257220877,0.51824972,2460.6,2460.4,2.84503]
[1725257222234,0.51824972,2460.6,2460.4,5.69003]
[1725257222585,0.51824972,2460.6,2460.5,5.6899]
[1725257222788,0.51824972,2460.6,2460.5,2.84495]
[1725257222789,0.42561308,2460.6,2460.5,2.84495]
[1725257222990,0.51779361,2460.6,2460.5,2.84495]
[1725257223930,2.81899361,2460.6,2460.3,2.84512]
[1725257224237,0.79969297,2460.6,2460.3,2.84511]
[1725257224390,0.51779361,2460.6,2460.3,2.84511]
[1725257225232,0.51779361,2460.6,2460.3,2.84509]
[1725257225383,0.51779361,2460.6,2460.2,2.3278]
[1725257225384,0.51779361,2460.6,2460.1,8.63962992]
[1725257225592,0.07959171,2460.5,2460.1,5.69066]
[1725257225822,0.17166362,2460.5,2460.1,5.69066]
[1725257226152,0.17166362,2460.5,2460.1,2.84532]
[1725257226444,2.4802,2460.4,2460.1,2.84532]
[1725257226588,2.57223825,2460.4,2460.1,2.84532]
[1725257227810,2.57223825,2460.4,2460.1,5.69066]
[1725257228010,0.09203825,2460.4,2460.1,5.69066]
[1725257228234,0.42563228,2460.3,2460.1,2.84532]
[1725257228419,0.51762254,2460.3,2460.1,2.84532]
[1725257228797,0.51762254,2460.3,2460.1,5.69065]
[1725257228994,0.51762254,2460.3,2460.2,2.84529]
[1725257229835,0.51762254,2460.3,2460.1,2.84532]
[1725257234997,0.51762254,2460.3,2460.0,2.84551]
[1725257235760,0.51762254,2460.3,2460.2,2.84529]
[1725257240837,0.51762254,2460.3,2460.0,2.84551]
[1725257240838,0.51762254,2460.3,2460.0,5.69093]
[1725257241169,0.51762254,2460.3,2460.1,2.84538]
[1725257241304,0.51762254,2460.3,2460.0,2.84542]
[1725257242500,0.51762254,2460.3,2459.8,8.64032992]
[1725257242949,0.51762254,2460.3,2459.8,8.64029992]
[1725257243144,0.51762254,2460.3,2459.8,5.79461992]
[1725257243317,0.85389279,2460.3,2459.8,5.79461992]
[1725257243646,0.07959171,2460.2,2459.8,5.79461992]
[1725257243823,0.07959171,2460.2,2459.8,8.64029992]
[1725257245773,0.07959171,2460.2,2459.9,2.8456]
[1725257246285,0.09095775,2460.1,2459.9,2.8456]
[1725257246585,0.09095775,2460.1,2460.0,2.84552]
[1725257246954,0.50522399,2460.3,2460.0,2.84552]
[1725257247146,0.09101744,2460.1,2460.0,2.84552]
[1725257247345,0.50522399,2460.3,2460.0,2.84552]
[1725257247541,0.09101744,2460.1,2460.0,2.84552]
[1725257248078,0.09101744,2460.1,2460.0,4.07901352]
[1725257248398,0.42563228,2460.3,2460.0,4.07901352]
[1725257248541,0.09099494,2460.1,2460.0,4.07901352]
[1725257249344,0.50522399,2460.3,2460.0,4.07895352]
[1725257249551,0.09099494,2460.1,2460.0,4.07895352]
[1725257250076,0.42563228,2460.3,2460.0,4.07895352]
[1725257250251,0.0910286,2460.2,2460.0,4.07895352]
[1725257250771,0.42563228,2460.3,2460.0,4.07895352]
[1725257251090,0.42563228,2460.3,2460.1,2.84541]
[1725257251249,0.0910286,2460.2,2460.1,2.84541]
[1725257251450,0.42563228,2460.3,2460.1,2.84541]
[1725257251755,0.0910286,2460.2,2460.1,2.84541]
[1725257252191,0.42563228,2460.3,2460.1,2.84541]
[1725257252376,0.0910286,2460.2,2460.1,2.84541]
[1725257252704,0.42563228,2460.3,2460.1,2.84541]
[1725257252990,0.0910286,2460.2,2460.1,2.84541]
[1725257253397,0.42563228,2460.3,2460.1,2.84541]
[1725257253601,0.0910286,2460.2,2460.1,2.84541]
[1725257253795,0.0910286,2460.2,2460.1,2.7551733]
[1725257254000,0.42563228,2460.3,2460.1,2.7551733]
[1725257254203,0.0910286,2460.2,2460.1,2.7551733]
[1725257254571,0.42563228,2460.3,2460.1,2.7551733]
[1725257254773,0.0910286,2460.2,2460.1,2.7551733]
[1725257255207,0.42563228,2460.3,2460.1,2.7551733]
[1725257255498,0.0910286,2460.2,2460.1,2.7551733]
[1725257255902,0.42563228,2460.3,2460.2,2.84529]
[1725257256078,0.51669455,2460.3,2460.2,4.07878352]
[1725257257859,0.51669455,2460.3,2460.2,6.92407352]
[1725257263217,0.51669455,2460.3,2460.1,2.8454]
[1725257263506,0.51669455,2460.3,2460.0,2.84551]
[1725257265209,0.51669455,2460.3,2459.9,1.23349352]
[1725257265717,0.51669455,2460.3,2459.8,15.47149]
[1725257266016,0.51669455,2460.3,2460.0,2.84551]
[1725257266707,0.51669455,2460.3,2460.1,1.23349352]
[1725257266921,0.82262318,2460.3,2460.1,1.23349352]
[1725257267415,0.82262318,2460.3,2460.0,2.84551]
[1725257269030,0.82262318,2460.3,2459.9,1.23349352]
[1725257269215,0.07959171,2460.2,2459.6,5.11817]
[1725257269402,2.9428202,2460.2,2459.7,4.07935352]
[1725257269581,0.0877669,2460.1,2459.7,4.07935352]
[1725257270338,0.0877669,2460.1,2459.2,15.24642]
[1725257270339,0.42556431,2460.0,2459.2,12.4]
[1725257270637,0.07959171,2459.9,2459.4,2.84621]
[1725257270840,0.16702877,2459.9,2459.4,2.84621]
[1725257271043,0.55822005,2459.9,2459.4,2.84621]
[1725257271401,0.55822005,2459.9,2458.8,2.8469]
[1725257271402,0.05,2458.7,2457.6,0.13578635]
[1725257271610,0.05,2458.7,2457.3,2.98019061]
[1725257271611,1.2827844,2457.7,2457.3,2.98019061]
[1725257271824,1.36966008,2457.6,2457.4,7.21334922]
[1725257272147,0.08627157,2457.6,2457.4,1.23349352]
[1725257272442,1.71037921,2457.8,2457.5,2.84842]
[1725257272607,0.93225676,2458.1,2457.6,0.08137933]
[1725257272816,0.93225676,2458.1,2457.5,1.23349352]
[1725257273337,2.84794,2458.0,2457.1,2.84888]
[1725257273537,2.84794,2458.0,2457.0,6.34459352]
[1725257273538,3.30565139,2457.9,2457.0,6.34459352]
[1725257273739,2.84813,2457.8,2457.0,6.34459352]
[1725257273923,0.07959171,2457.7,2457.0,5.1111]
[1725257274092,0.07959171,2457.7,2457.0,5.90713]
[1725257274294,0.07959171,2457.7,2457.1,2.84888]
[1725257274497,0.07959171,2457.9,2457.4,2.84844]
[1725257274709,0.07959171,2457.9,2457.5,2.84841]
[1725257274912,0.07959171,2458.1,2457.6,2.84826]
[1725257275198,0.47281739,2458.1,2457.5,2.84841]
[1725257275397,0.08268486,2458.0,2457.5,2.84841]
[1725257275862,0.08268486,2458.0,2457.4,2.84843]
[1725257276516,0.08268486,2458.0,2457.3,2.84864]
[1725257276748,0.07959171,2457.9,2457.3,2.84864]
[1725257277074,0.16206294,2457.9,2457.3,2.84864]
[1725257277220,0.58794493,2457.9,2457.4,2.84853]
[1725257277426,3.43590493,2457.9,2457.1,2.8488]
[1725257277631,0.44737066,2457.8,2457.2,2.84875]
[1725257277833,0.07959171,2457.7,2457.2,2.84875]
[1725257278036,0.16206767,2457.7,2457.3,2.84865]
[1725257279516,0.16206767,2457.7,2457.4,2.84852]
[1725257279739,0.16206767,2457.7,2457.3,2.84865]
[1725257280406,0.16206767,2457.7,2457.4,2.84853]
[1725257280957,0.16206767,2457.7,2457.3,2.84865]
[1725257281636,0.08247596,2457.7,2457.3,5.81587077]
[1725257281961,0.07959171,2458.0,2457.7,2.84816]
[1725257282159,0.07959171,2458.0,2457.6,5.81560077]
[1725257282367,0.07959171,2458.3,2457.6,5.81560077]
[1725257282655,1.19055171,2458.3,2457.7,2.84818]
[1725257282838,0.07959171,2458.2,2457.7,2.84818]
[1725257283147,0.07959171,2458.2,2457.6,5.81560077]
[1725257283379,0.49864688,2458.2,2457.6,5.81552077]
[1725257283783,0.49864688,2458.2,2457.8,2.84807]
[1725257284158,0.49864688,2458.2,2457.9,2.84795]
[1725257284357,0.49864688,2458.2,2457.8,2.84807]
[1725257284358,0.07959171,2458.2,2458.0,2.84781]
[1725257284738,0.07959171,2458.4,2458.1,2.84772]
[1725257285147,2.92665171,2458.7,2458.0,5.69557]
[1725257285386,0.52155517,2458.6,2458.0,2.84776]
[1725257285693,0.07959171,2458.5,2458.0,2.84776]
[1725257286556,2.92663171,2458.7,2458.1,2.8477]
[1725257286758,0.52155317,2458.6,2458.2,2.84758]
[1725257286982,0.07959171,2458.6,2458.3,2.84742]
[1725257287490,0.07959171,2458.6,2458.2,2.84758]
[1725257287491,0.07959171,2458.6,2458.4,2.84738]
[1725257287695,0.07959171,2458.8,2458.4,2.84738]
[1725257287884,0.42957134,2458.8,2458.2,5.69511]
[1725257288102,0.07959171,2458.7,2458.2,2.84753]
[1725257288262,0.47252847,2458.7,2458.2,2.84753]
[1725257288649,0.47252847,2458.7,2458.3,2.84747]
[1725257288846,0.47252847,2458.7,2458.2,2.84753]
[1725257288847,0.47252847,2458.7,2458.4,2.84736]
[1725257289353,0.47252847,2458.7,2458.4,5.69466]
[1725257289554,0.47252847,2458.7,2458.4,2.8473]
[1725257290160,0.08289335,2458.6,2458.4,2.8473]
[1725257290497,0.50869742,2458.6,2458.4,2.8473]
[1725257291063,0.50869742,2458.6,2458.2,5.81488077]
[1725257291263,0.50869742,2458.6,2458.2,8.66240077]
[1725257291463,0.50869742,2458.6,2458.5,2.84726]
[1725257295472,0.50869742,2458.6,2458.5,5.69452]
[1725257295652,0.50869742,2458.6,2458.5,8.66182077]
[1725257295854,0.50869742,2458.6,2458.5,9.23127277]
[1725257296096,0.08289335,2458.6,2458.5,9.23127277]
[1725257296267,3.49979629,2458.9,2458.7,2.84695]
[1725257296663,0.08076037,2458.8,2458.7,2.84695]
[1725257298978,0.08076037,2458.8,2458.7,8.17818]
[1725257299157,0.08076037,2458.8,2458.7,8.72818]
[1725257299358,3.49979629,2458.9,2458.8,5.69382]
[1725257300190,3.49979629,2458.9,2458.8,9.65526208]
[1725257300393,3.49979629,2458.9,2458.8,10.20526208]
[1725257302214,2.96013341,2458.9,2458.8,10.20526208]
[1725257303012,2.96013341,2458.9,2458.8,5.69382]
[1725257303197,0.07959171,2459.8,2458.7,5.45150077]
[1725257303198,2.84588,2459.7,2459.0,2.84662]
[1725257303376,0.07959171,2459.6,2459.0,2.84662]
[1725257303577,0.1616634,2459.6,2459.0,5.81392077]